bitfinex/quotes_BTCUSD_20240820
["timestamp","ask_amount","ask_price","bid_price","bid_amount"]
[1724185160671,0.000822,59729.0,59726.0,0.4288]
[1724185160877,0.000822,59729.0,59726.0,0.4328]
[1724185161285,0.000822,59729.0,59726.0,0.4288]
[1724185161589,0.000822,59729.0,59726.0,0.47745166]
[1724185161766,0.000822,59729.0,59728.0,0.2277]
[1724185163150,0.15979614,59734.0,59728.0,0.2277]
[1724185163352,0.502217,59736.0,59728.0,0.2277]
[1724185163664,0.167406,59735.0,59728.0,0.2357]
[1724185163825,0.167406,59735.0,59729.0,0.06378797]
[1724185164025,0.167406,59735.0,59729.0,0.06278797]
[1724185164232,0.19363375,59735.0,59729.0,0.06278797]
[1724185164441,0.167409,59734.0,59729.0,0.06278797]
[1724185165012,0.167411,59733.0,59728.0,0.2357]
[1724185165216,0.916267,59729.0,59728.0,0.008]
[1724185165467,0.502302,59725.0,59724.0,0.05073763]
[1724185165667,0.502302,59725.0,59724.0,0.0009042]
[1724185166134,0.167434,59725.0,59724.0,0.0009042]
[1724185166934,0.168434,59725.0,59724.0,0.0139042]
[1724185167144,0.167431,59726.0,59724.0,0.0009042]
[1724185167916,0.02622775,59725.0,59724.0,0.0009042]
[1724185168523,0.02722775,59725.0,59724.0,0.0169042]
[1724185169090,0.02722775,59725.0,59724.0,0.0099042]
[1724185169301,0.02822775,59725.0,59724.0,0.0179042]
[1724185169943,1.27939775,59725.0,59724.0,0.0179042]
[1724185170911,1.27839775,59725.0,59724.0,0.0099042]
[1724185171775,1.27739775,59725.0,59724.0,0.0009042]
[1724185171976,1.27739775,59725.0,59724.0,0.0029042]
[1724185172279,1.27739775,59725.0,59724.0,0.0049042]
[1724185189394,1.27739775,59725.0,59724.0,0.0049042]
[1724185190528,1.39399775,59725.0,59724.0,0.0049042]
[1724185191924,1.27739775,59725.0,59724.0,0.0049042]
[1724185192131,1.39399775,59725.0,59724.0,0.0049042]
[1724185192536,1.72886575,59725.0,59724.0,0.0049042]
[1724185193373,1.72886575,59725.0,59724.0,0.0029042]
[1724185193791,1.72886575,59725.0,59724.0,0.0039042]
[1724185193993,1.72886575,59725.0,59724.0,0.0019042]
[1724185194171,1.72886575,59725.0,59724.0,0.0009042]
[1724185194628,1.72886575,59725.0,59724.0,0.0029042]
[1724185195464,1.72886575,59725.0,59724.0,0.0039042]
[1724185195678,1.72886575,59725.0,59724.0,0.0029042]
[1724185196107,1.72886575,59725.0,59724.0,0.0049042]
[1724185201805,1.72886575,59725.0,59724.0,0.0029042]
[1724185202012,1.72886575,59725.0,59724.0,0.0019042]
[1724185202372,1.72886575,59725.0,59724.0,0.0029042]
[1724185207127,2.16373375,59725.0,59724.0,0.0029042]
[1724185208113,2.16373375,59725.0,59724.0,0.0019042]
[1724185208354,2.16773375,59725.0,59724.0,0.0009042]
[1724185208689,2.16673375,59725.0,59724.0,0.0009042]
[1724185209141,2.17073375,59725.0,59724.0,0.0009042]
[1724185209517,2.16773375,59725.0,59724.0,0.0009042]
[1724185211024,2.17073375,59725.0,59724.0,0.0009042]
[1724185212551,2.50560175,59725.0,59724.0,0.0009042]
[1724185212963,2.53060175,59725.0,59724.0,0.0009042]
[1724185213168,2.53060175,59725.0,59724.0,0.00012406]
[1724185213375,2.87660175,59725.0,59724.0,0.00012406]
[1724185214409,2.87360175,59725.0,59724.0,0.00012406]
[1724185214609,2.88460175,59725.0,59724.0,0.00112406]
[1724185214815,2.88060175,59725.0,59724.0,0.00112406]
[1724185215025,2.86960175,59725.0,59724.0,0.00012406]
[1724185215233,2.89060175,59725.0,59724.0,0.00212406]
[1724185215642,2.88060175,59725.0,59724.0,0.00112406]
[1724185216064,2.89460175,59725.0,59724.0,0.00212406]
[1724185216632,2.89360175,59725.0,59724.0,0.00212406]
[1724185217774,2.89460175,59725.0,59724.0,0.00212406]
[1724185224953,2.77700175,59725.0,59724.0,0.00212406]
[1724185225169,2.89360175,59725.0,59724.0,0.00212406]
[1724185225371,2.54760175,59725.0,59724.0,0.00212406]
[1724185225777,2.31700175,59725.0,59724.0,0.00212406]
[1724185226406,2.31782375,59725.0,59724.0,0.00212406]
[1724185229021,1.55895575,59725.0,59724.0,0.23552406]
[1724185229255,1.39708775,59725.0,59724.0,0.43032406]
[1724185229564,0.88921975,59725.0,59724.0,0.43032406]
[1724185230121,0.87521975,59725.0,59724.0,0.42932406]
[1724185230323,1.19908775,59725.0,59724.0,0.42832406]
[1724185230560,1.21608775,59725.0,59724.0,0.42932406]
[1724185230784,1.21608775,59725.0,59724.0,0.42832406]
[1724185231032,1.20708775,59725.0,59724.0,0.42832406]
[1724185231227,1.20808775,59725.0,59724.0,0.42932406]
[1724185231637,1.30808775,59725.0,59724.0,0.42932406]
[1724185233567,0.97321975,59725.0,59724.0,0.42932406]
[1724185234954,1.30808775,59725.0,59724.0,0.42932406]
[1724185236233,1.30808775,59725.0,59724.0,0.00112406]
[1724185236890,1.49528775,59725.0,59724.0,0.00112406]
[1724185237117,1.83015575,59725.0,59724.0,0.00112406]
[1724185238593,1.82215575,59725.0,59724.0,0.00012406]
[1724185239641,1.82115575,59725.0,59724.0,0.00012406]
[1724185239867,1.82715575,59725.0,59724.0,0.00012406]
[1724185239999,1.84201472,59725.0,59724.0,0.00012406]
[1724185240153,1.31008775,59725.0,59724.0,0.00012406]
[1724185241213,1.42668775,59725.0,59724.0,0.00012406]
[1724185242102,1.76155575,59725.0,59724.0,0.00012406]
[1724185242225,1.99105575,59725.0,59724.0,0.00012406]
[1724185244236,2.18685575,59725.0,59724.0,0.00012406]
[1724185248579,1.95735575,59725.0,59724.0,0.00012406]
[1724185248794,1.31008775,59725.0,59724.0,0.23622406]
[1724185248967,1.42668775,59725.0,59724.0,0.41512406]
[1724185249174,0.97521975,59725.0,59724.0,0.41512406]
[1724185249634,1.31008775,59725.0,59724.0,0.41512406]
[1724185250005,1.30408775,59725.0,59724.0,0.41512406]
[1724185250154,1.29908775,59725.0,59724.0,0.41512406]
[1724185250358,1.29908775,59725.0,59724.0,0.41712406]
[1724185250658,1.29908775,59725.0,59724.0,0.42112406]
[1724185255635,0.96421975,59725.0,59724.0,0.42112406]
[1724185257383,1.29908775,59725.0,59724.0,0.42112406]
[1724185260120,1.29908775,59725.0,59724.0,0.00612406]
[1724185260525,1.81825575,59725.0,59724.0,0.00612406]
[1724185260721,1.63395575,59725.0,59724.0,0.00612406]
[1724185261674,0.96421975,59725.0,59724.0,0.42482406]
[1724185261881,0.96621975,59725.0,59724.0,0.42482406]
[1724185262123,1.30108775,59725.0,59724.0,0.42482406]
[1724185262354,0.96421975,59725.0,59724.0,0.42082406]
[1724185262725,1.30508775,59725.0,59724.0,0.42082406]
[1724185264546,1.30108775,59725.0,59724.0,0.42082406]
[1724185264962,1.30508775,59725.0,59724.0,0.42082406]
[1724185265376,1.30108775,59725.0,59724.0,0.42082406]
[1724185265786,1.29908775,59725.0,59724.0,0.42082406]
[1724185266584,1.29908775,59725.0,59724.0,0.42182406]
[1724185271773,1.29908775,59725.0,59724.0,0.00112406]
[1724185271979,1.52808775,59725.0,59724.0,0.00112406]
[1724185272198,2.06085575,59725.0,59724.0,0.00112406]
[1724185272455,2.06385575,59725.0,59724.0,0.00112406]
[1724185272664,2.06385575,59725.0,59724.0,0.00015422]
[1724185272665,2.73359175,59725.0,59724.0,0.00015422]
[1724185272873,2.73359175,59725.0,59717.0,0.0009042]
[1724185272874,2.163981,59718.0,59717.0,0.0009042]
[1724185273084,2.40680875,59718.0,59717.0,0.0009042]
[1724185273295,2.40680875,59718.0,59705.0,0.2425]
[1724185273296,0.2,59706.0,59705.0,0.04960913]
[1724185273509,2.62211075,59706.0,59705.0,0.04960913]
[1724185273743,2.62211075,59706.0,59694.0,0.1804]
[1724185273744,1.202468,59703.0,59694.0,0.1804]
[1724185274008,1.202468,59703.0,59692.0,0.2425]
[1724185274009,1.86368675,59703.0,59692.0,0.2425]
[1724185274243,1.98028675,59703.0,59694.0,0.04943815]
[1724185274449,1.86368675,59703.0,59694.0,0.04943815]
[1724185275070,1.87068675,59703.0,59694.0,0.04943815]
[1724185275505,1.86368675,59703.0,59694.0,0.04943815]
[1724185275916,1.87068675,59703.0,59694.0,0.04943815]
[1724185276117,1.87568675,59703.0,59694.0,0.04943815]
[1724185276562,1.87068675,59703.0,59694.0,0.04943815]
[1724185276770,1.87568675,59703.0,59694.0,0.04943815]
[1724185280217,1.87568675,59703.0,59699.0,0.2357]
[1724185280218,1.31069575,59703.0,59699.0,0.2357]
[1724185280814,1.34069575,59703.0,59699.0,0.2357]
[1724185281649,1.34069575,59703.0,59695.0,0.2357]
[1724185283292,1.34069575,59703.0,59702.0,0.2396042]
[1724185283293,1.31069575,59703.0,59702.0,0.2396042]
[1724185283461,1.31069575,59703.0,59702.0,0.0009042]
[1724185284542,1.82808675,59703.0,59702.0,0.0009042]
[1724185284667,2.07148675,59703.0,59702.0,0.0009042]
[1724185285311,2.06448675,59703.0,59702.0,0.0009042]
[1724185285523,1.63368675,59703.0,59702.0,0.0009042]
[1724185285965,1.52169575,59703.0,59702.0,0.1798042]
[1724185286176,1.52169575,59703.0,59702.0,0.0009042]
[1724185287324,1.52169575,59703.0,59702.0,0.2299042]
[1724185288488,1.52169575,59703.0,59702.0,0.0009042]
[1724185289045,1.52169575,59703.0,59702.0,0.2336042]
[1724185289046,1.495468,59703.0,59702.0,0.2336042]
[1724185289196,1.52171296,59703.0,59702.0,0.2336042]
[1724185289599,1.52171296,59703.0,59702.0,0.0009042]
[1724185290580,0.85173096,59703.0,59702.0,0.4223042]
[1724185290845,0.525486,59703.0,59702.0,0.4223042]
[1724185291638,0.513486,59703.0,59702.0,0.4223042]
[1724185291915,0.848477,59703.0,59702.0,0.4223042]
[1724185292270,0.346,59706.0,59703.0,0.4395]
[1724185292454,0.346,59706.0,59704.0,0.606992]
[1724185292653,0.346,59706.0,59705.0,0.4395]
[1724185292854,0.167474,59711.0,59705.0,0.4395]
[1724185293056,0.167476,59710.0,59705.0,0.4395]
[1724185293283,0.167476,59710.0,59705.0,0.2454]
[1724185293482,0.167476,59710.0,59706.0,0.1941]
[1724185293739,0.334938,59713.0,59708.0,0.1941]
[1724185293740,0.167478,59709.0,59708.0,0.1941]
[1724185294612,0.502435,59709.0,59708.0,0.1901]
[1724185295248,0.167478,59709.0,59708.0,0.1901]
[1724185295451,0.168478,59709.0,59708.0,0.1901]
[1724185296040,0.169478,59709.0,59708.0,0.1901]
[1724185296661,0.504435,59709.0,59708.0,0.1901]
[1724185296865,0.504435,59709.0,59708.0,0.4361]
[1724185297933,0.169478,59709.0,59708.0,0.4361]
[1724185298144,0.002,59709.0,59708.0,0.4361]
[1724185298350,0.169478,59709.0,59708.0,0.4361]
[1724185299194,0.504435,59709.0,59708.0,0.4361]
[1724185304288,0.839392,59709.0,59708.0,0.4361]
[1724185307395,0.86563136,59709.0,59708.0,0.4361]
[1724185307821,0.839392,59709.0,59708.0,0.4361]
[1724185308312,0.504435,59709.0,59708.0,0.4361]
[1724185309657,0.839392,59709.0,59708.0,0.4361]
[1724185309857,0.502461,59706.0,59705.0,0.2355053]
[1724185310064,0.837435,59706.0,59705.0,0.2355053]
[1724185310263,1.19864954,59706.0,59705.0,0.2355053]
[1724185311187,1.19964954,59706.0,59705.0,0.2355053]
[1724185311602,1.20064954,59706.0,59705.0,0.2385053]
[1724185312840,1.20064954,59706.0,59705.0,0.0039053]
[1724185314963,0.86567554,59706.0,59705.0,0.0039053]
[1724185315186,0.86567554,59706.0,59705.0,0.4141053]
[1724185315388,0.53070154,59706.0,59705.0,0.4141053]
[1724185318497,0.86567554,59706.0,59705.0,0.4141053]
[1724185319155,0.86567554,59706.0,59705.0,0.0039053]
[1724185320575,1.04977554,59706.0,59705.0,0.0039053]
[1724185320986,1.38474954,59706.0,59705.0,0.0039053]
[1724185321385,1.20064954,59706.0,59705.0,0.0039053]
[1724185325501,0.54823058,59706.0,59705.0,0.4011053]
[1724185326311,0.88320458,59706.0,59705.0,0.4011053]
[1724185326519,0.88320458,59706.0,59705.0,0.2305053]
[1724185326946,0.88320458,59706.0,59705.0,0.0039053]
[1724185331236,0.54823058,59706.0,59705.0,0.0039053]
[1724185331459,0.88320458,59706.0,59705.0,0.0039053]
[1724185332589,0.88320458,59706.0,59705.0,0.2273053]
[1724185334615,1.21817858,59706.0,59705.0,0.0039053]
[1724185337755,0.88320458,59706.0,59705.0,0.0039053]
[1724185337986,0.54823058,59706.0,59705.0,0.0039053]
[1724185339153,0.54823058,59706.0,59705.0,0.2227053]
[1724185341039,0.54823058,59706.0,59705.0,0.3960053]
[1724185341259,0.04576958,59706.0,59705.0,0.3960053]
[1724185341764,0.04576958,59706.0,59705.0,1.2334553]
[1724185341972,0.04576958,59706.0,59705.0,0.8984753]
[1724185342797,0.04476958,59706.0,59705.0,0.8954753]
[1724185343427,0.01852904,59706.0,59705.0,0.8954753]
[1724185343665,0.01952904,59706.0,59705.0,0.5634953]
[1724185344069,0.01852904,59706.0,59705.0,0.5634953]
[1724185344283,0.01852904,59706.0,59705.0,0.3960053]
[1724185344511,0.01952904,59706.0,59705.0,0.5704953]
[1724185344712,0.01952904,59706.0,59705.0,0.4030053]
[1724185346098,0.04576615,59706.0,59705.0,0.4030053]
[1724185346302,0.01952904,59706.0,59705.0,0.4030053]
[1724185353493,0.04576663,59706.0,59705.0,0.4030053]
[1724185353696,0.01952904,59706.0,59705.0,0.4030053]
[1724185353901,0.04576633,59706.0,59705.0,0.4030053]
[1724185354106,0.01952904,59706.0,59705.0,0.4030053]
[1724185356343,0.01952904,59706.0,59705.0,0.99611555]
[1724185356553,0.01952904,59706.0,59705.0,1.2404553]
[1724185356996,0.01952904,59706.0,59705.0,1.5764353]
[1724185356997,0.002,59706.0,59705.0,1.5764353]
[1724185357415,0.002,59706.0,59705.0,1.5754353]
[1724185357826,0.002,59706.0,59705.0,1.73316925]
[1724185359068,0.002,59706.0,59705.0,1.39818925]
[1724185360103,0.002,59706.0,59705.0,1.39918925]
[1724185360310,0.002,59706.0,59705.0,1.40118925]
[1724185361967,0.002,59706.0,59705.0,1.2434553]
[1724185362318,0.002,59706.0,59705.0,1.5804353]
[1724185362516,0.002,59706.0,59705.0,1.65342675]
[1724185362963,0.002,59706.0,59705.0,1.67842248]
[1724185363496,0.002,59706.0,59705.0,1.6034353]
[1724185363711,0.001,59706.0,59705.0,1.83940126]
[1724185363930,0.01752904,59720.0,59705.0,1.83940126]
[1724185363931,0.01752904,59720.0,59716.0,1.175213]
[1724185364152,0.01752904,59720.0,59716.0,2.27736897]
[1724185364401,0.000822,59725.0,59716.0,2.75763904]
[1724185364629,0.000822,59725.0,59716.0,2.79577289]
[1724185365324,0.001823,59717.0,59716.0,2.94861782]
[1724185365524,0.000823,59717.0,59716.0,2.80977289]
[1724185365763,0.001823,59717.0,59716.0,2.80977289]
[1724185365965,0.001823,59717.0,59716.0,2.79574022]
[1724185366168,0.000823,59717.0,59716.0,2.89546283]
[1724185367214,0.000823,59717.0,59716.0,2.90946283]
[1724185367421,0.000823,59717.0,59716.0,2.92346283]
[1724185367633,0.000823,59717.0,59716.0,2.90946283]
[1724185367837,0.000823,59717.0,59716.0,2.92346283]
[1724185368257,0.000823,59717.0,59716.0,2.52675293]
[1724185368666,0.000823,59717.0,59716.0,2.52675445]
[1724185368868,0.000823,59717.0,59716.0,2.53678896]
[1724185369681,0.000823,59717.0,59716.0,2.51185435]
[1724185370425,0.000823,59717.0,59716.0,2.46203429]
[1724185372585,0.000823,59717.0,59716.0,2.16110398]
[1724185372792,0.000823,59717.0,59716.0,2.2889252]
[1724185372994,0.000823,59717.0,59716.0,1.9540072]
[1724185374105,0.000823,59717.0,59716.0,3.2994072]
[1724185374718,0.000823,59717.0,59716.0,3.6343252]
[1724185374919,0.000823,59717.0,59716.0,3.46338598]
[1724185375939,0.000823,59717.0,59716.0,3.79830398]
[1724185378988,1e-08,59717.0,59716.0,3.79830398]
[1724185386338,1e-08,59717.0,59716.0,3.46338598]
[1724185386540,1e-08,59717.0,59716.0,3.1011072]
[1724185386951,1e-08,59717.0,59716.0,3.4360252]
[1724185387964,1e-08,59717.0,59716.0,3.4590252]
[1724185394014,0.000822,59725.0,59724.0,1.176055]
[1724185394213,0.000822,59725.0,59724.0,1.4331605]
[1724185396156,0.000822,59725.0,59724.0,1.4471605]
[1724185396831,0.000822,59725.0,59724.0,1.4611605]
[1724185399612,0.000822,59725.0,59724.0,1.3416605]
[1724185399809,0.000822,59725.0,59724.0,1.4581605]
[1724185400701,0.000822,59725.0,59724.0,1.4591605]
[1724185401084,0.354322,59725.0,59724.0,0.195436]
[1724185401605,0.38054956,59725.0,59724.0,0.195436]
[1724185402164,0.38054956,59725.0,59724.0,0.181436]
[1724185403005,0.38054956,59725.0,59724.0,0.195436]
[1724185403604,0.38054956,59725.0,59724.0,0.181436]
[1724185403808,0.38054956,59725.0,59724.0,0.195436]
[1724185404010,0.38054956,59725.0,59724.0,0.181436]
[1724185404205,0.38154956,59725.0,59724.0,0.195436]
[1724185404827,0.38154956,59725.0,59724.0,0.028]
[1724185408129,0.38154956,59725.0,59724.0,0.3766187]
[1724185408363,0.38154956,59725.0,59724.0,0.311936]
[1724185408539,0.355322,59725.0,59724.0,0.311936]
[1724185410151,0.355322,59725.0,59724.0,0.646809]
[1724185410152,0.001822,59725.0,59724.0,0.646809]
[1724185410389,0.001822,59725.0,59724.0,0.83737006]
[1724185410627,0.001822,59725.0,59724.0,1.55814306]
[1724185410887,0.001822,59725.0,59724.0,2.21580443]
[1724185411125,0.001822,59725.0,59724.0,2.31573217]
[1724185411550,0.000822,59725.0,59724.0,2.30173217]
[1724185411767,0.000822,59725.0,59724.0,2.30186589]
[1724185412117,0.000822,59725.0,59724.0,2.28786589]
[1724185412351,0.000822,59725.0,59724.0,2.30186589]
[1724185412515,0.001822,59725.0,59724.0,2.30186589]
[1724185412718,0.002822,59725.0,59724.0,2.31586589]
[1724185413472,0.001822,59725.0,59724.0,2.30186589]
[1724185413684,0.000822,59725.0,59724.0,2.28786589]
[1724185413884,0.001822,59725.0,59724.0,2.31586589]
[1724185414832,0.001822,59725.0,59724.0,2.31786589]
[1724185415676,0.001822,59725.0,59724.0,1.8153687]
[1724185417038,0.001822,59725.0,59724.0,1.8133687]
[1724185417284,0.001822,59725.0,59724.0,1.8123687]
[1724185417693,0.001822,59725.0,59724.0,1.8133687]
[1724185418099,0.001822,59725.0,59724.0,2.1837687]
[1724185418312,0.001822,59725.0,59724.0,2.34774748]
[1724185419911,0.001822,59725.0,59724.0,2.68262048]
[1724185420113,0.000822,59735.0,59734.0,1.373049]
[1724185420313,0.000822,59735.0,59734.0,1.92879949]
[1724185420514,0.000822,59735.0,59734.0,2.52759527]
[1724185420915,0.000822,59735.0,59734.0,3.04787]
[1724185421127,0.000822,59735.0,59734.0,3.19782193]
[1724185421336,0.000822,59735.0,59734.0,3.23141193]
[1724185421542,0.000822,59735.0,59734.0,2.56106652]
[1724185421711,0.000822,59735.0,59734.0,2.57206652]
[1724185422406,0.000822,59735.0,59734.0,2.58706652]
[1724185422608,0.000822,59735.0,59734.0,2.70256652]
[1724185422814,0.000822,59735.0,59734.0,2.10937974]
[1724185423238,0.000822,59735.0,59734.0,1.99854952]
[1724185423443,0.000822,59735.0,59734.0,1.98454952]
[1724185423621,0.000822,59735.0,59734.0,1.99854952]
[1724185423993,0.000822,59735.0,59734.0,2.08437974]
[1724185424198,0.000822,59735.0,59734.0,1.99854952]
[1724185424401,0.000822,59735.0,59734.0,2.10932317]
[1724185424614,0.000822,59735.0,59734.0,1.96782434]
[1724185424843,0.000822,59735.0,59734.0,1.98182434]
[1724185425015,0.000822,59735.0,59734.0,1.89604952]
[1724185425451,0.000822,59735.0,59734.0,1.88204952]
[1724185425598,0.000822,59735.0,59734.0,1.97087339]
[1724185425803,0.000822,59735.0,59734.0,1.89604952]
[1724185426457,0.000822,59735.0,59734.0,1.99581488]
[1724185426657,0.000822,59735.0,59734.0,1.89604952]
[1724185426870,0.000822,59735.0,59734.0,1.99581488]
[1724185427220,0.000822,59735.0,59734.0,1.89604952]
[1724185427621,0.000822,59735.0,59734.0,1.96784697]
[1724185427871,0.000822,59735.0,59734.0,1.357449]
[1724185429322,0.000822,59735.0,59734.0,1.358449]
[1724185429524,0.000822,59735.0,59734.0,1.357449]
[1724185429721,0.000822,59735.0,59734.0,1.358449]
[1724185429943,0.000822,59735.0,59734.0,1.360449]
[1724185430156,0.000822,59735.0,59734.0,1.52442778]
[1724185430961,0.000822,59735.0,59734.0,1.52142778]
[1724185431117,0.157022,59735.0,59734.0,1.233449]
[1724185432682,0.157022,59735.0,59734.0,1.219449]
[1724185433030,0.157022,59735.0,59734.0,1.233449]
[1724185440051,0.000822,59735.0,59734.0,1.234449]
[1724185440234,0.000822,59735.0,59734.0,2.11764478]
[1724185442644,0.000822,59735.0,59734.0,2.11464478]
[1724185443282,0.000822,59735.0,59734.0,2.11564478]
[1724185443679,0.000822,59735.0,59734.0,3.36104478]
[1724185444120,0.000822,59735.0,59734.0,3.36004478]
[1724185445707,0.000822,59735.0,59734.0,3.36304478]
[1724185446521,0.000822,59735.0,59734.0,3.47754478]
[1724185446734,0.000822,59735.0,59734.0,3.47954478]
[1724185448305,0.000822,59735.0,59734.0,2.860249]
[1724185448488,0.000822,59735.0,59734.0,2.168032]
[1724185448714,0.000822,59735.0,59734.0,2.284532]
[1724185448925,0.000822,59735.0,59734.0,2.619349]
[1724185449535,0.000822,59735.0,59734.0,1.373949]
[1724185449763,0.000822,59735.0,59734.0,1.374949]
[1724185449916,0.000822,59735.0,59734.0,1.376949]
[1724185450144,0.000822,59735.0,59734.0,1.206541]
[1724185450344,0.000822,59735.0,59734.0,1.373949]
[1724185451085,0.000822,59735.0,59734.0,1.374949]
[1724185452128,0.000822,59735.0,59734.0,1.376949]
[1724185452646,0.000822,59735.0,59734.0,1.75669142]
[1724185452856,0.000822,59735.0,59734.0,1.91259142]
[1724185453487,0.000822,59735.0,59734.0,1.735849]
[1724185453686,0.000822,59735.0,59734.0,1.579949]
[1724185455367,0.000822,59735.0,59734.0,1.580949]
[1724185455576,0.000822,59735.0,59734.0,2.826349]
[1724185455785,0.000822,59735.0,59734.0,2.87616002]
[1724185456392,0.000822,59735.0,59734.0,2.87816002]
[1724185456610,0.000822,59735.0,59734.0,3.43868635]
[1724185457233,0.000822,59735.0,59734.0,3.43868538]
[1724185457641,0.000822,59735.0,59734.0,3.43869076]
[1724185458056,0.000822,59735.0,59734.0,3.36397423]
[1724185460186,0.000822,59735.0,59734.0,3.48850179]
[1724185460629,0.000822,59735.0,59734.0,3.36397423]
[1724185461105,0.000822,59735.0,59734.0,3.363969]
[1724185461782,0.000822,59735.0,59734.0,4.188703]
[1724185462029,0.000823,59741.0,59740.0,0.204982]
[1724185462266,0.000823,59741.0,59740.0,2.81843811]
[1724185462481,0.000823,59741.0,59740.0,3.48800611]
[1724185462912,0.000823,59741.0,59740.0,3.64850611]
[1724185463329,0.000823,59741.0,59740.0,3.66250611]
[1724185463540,0.000823,59741.0,59740.0,3.82648489]
[1724185463752,0.000823,59741.0,59740.0,3.84048489]
[1724185464583,0.000823,59741.0,59740.0,4.36071273]
[1724185464989,0.000823,59741.0,59740.0,3.84048489]
[1724185465195,0.000823,59741.0,59740.0,4.51038887]
[1724185465422,0.000823,59741.0,59740.0,3.84048489]
[1724185465636,0.000823,59741.0,59740.0,4.36071233]
[1724185466493,0.000823,59741.0,59740.0,4.51044256]
[1724185466900,0.000823,59741.0,59740.0,4.84522656]
[1724185467139,0.000823,59741.0,59740.0,4.70536497]
[1724185467329,0.000823,59741.0,59740.0,4.85507421]
[1724185469474,0.000823,59741.0,59740.0,4.70536497]
[1724185470334,0.000823,59741.0,59740.0,3.68637475]
[1724185470743,0.000823,59741.0,59740.0,4.20324662]
[1724185470950,0.000823,59741.0,59740.0,3.32197241]
[1724185471367,0.000823,59741.0,59740.0,4.32656537]
[1724185471585,0.000822,59759.0,59740.0,4.32656537]
[1724185471586,0.000822,59759.0,59757.0,0.171344]
[1724185471796,0.000822,59759.0,59757.0,1.0187044]
[1724185472009,0.000822,59759.0,59757.0,2.31631378]
[1724185472227,0.00822,59777.0,59762.0,0.004]
[1724185472432,0.00822,59777.0,59762.0,1.36796023]
[1724185472433,0.16983,59767.0,59762.0,1.36796023]
[1724185472871,0.00823,59767.0,59762.0,1.58146023]
[1724185473082,0.00823,59767.0,59762.0,1.74543901]
[1724185473289,0.00823,59767.0,59762.0,1.69563446]
[1724185473492,0.00823,59767.0,59762.0,1.47578878]
[1724185473703,0.00823,59767.0,59762.0,1.32581]
[1724185473915,0.37123,59763.0,59762.0,1.20831]
[1724185474188,0.37123,59763.0,59762.0,0.014]
[1724185474827,0.37123,59763.0,59762.0,0.18133]
[1724185475234,0.37123,59763.0,59762.0,0.19533]
[1724185475436,0.37123,59763.0,59762.0,0.18133]
[1724185475854,0.37123,59763.0,59762.0,0.19533]
[1724185476059,0.37123,59763.0,59762.0,0.18133]
[1724185476259,0.37123,59763.0,59762.0,0.19533]
[1724185476469,0.37096866,59763.0,59762.0,0.014]
[1724185477083,0.37096866,59763.0,59762.0,0.028]
[1724185477923,0.37096866,59763.0,59762.0,0.5829911]
[1724185478131,0.37096866,59763.0,59762.0,0.9176511]
[1724185478343,0.37096866,59763.0,59762.0,0.9406511]
[1724185478587,0.37096866,59763.0,59762.0,0.88765]
[1724185478805,0.37096866,59763.0,59762.0,0.69232]
[1724185479043,0.37096866,59763.0,59762.0,0.85965]
[1724185480781,0.16956866,59763.0,59762.0,0.86065]
[1724185480994,0.16956866,59763.0,59762.0,0.85965]
[1724185482000,0.17056866,59763.0,59762.0,0.87265]
[1724185482379,0.17156866,59763.0,59762.0,0.52899]
[1724185484619,0.17156866,59763.0,59762.0,0.86365]
[1724185485170,0.00996866,59763.0,59762.0,1.28098625]
[1724185485371,0.00996866,59763.0,59762.0,1.22131]
[1724185487736,0.20816866,59763.0,59762.0,0.86365]
[1724185487944,0.20816866,59763.0,59762.0,0.52899]
[1724185489222,0.36276866,59763.0,59762.0,0.027]
[1724185490078,0.86475066,59763.0,59762.0,0.027]
[1724185490286,1.20040566,59763.0,59762.0,0.027]
[1724185490497,0.204,59752.0,59746.0,0.04929839]
[1724185490701,0.204,59750.0,59746.0,0.04929839]
[1724185491121,0.204,59750.0,59745.0,0.167375]
[1724185492140,0.205,59750.0,59746.0,0.013]
[1724185492934,0.205,59750.0,59745.0,0.167375]
[1724185492935,0.204,59750.0,59745.0,0.167375]
[1724185493557,0.205,59750.0,59745.0,0.170375]
[1724185494192,0.206,59750.0,59745.0,0.170375]
[1724185494405,0.206,59750.0,59745.0,0.003]
[1724185494611,0.206,59750.0,59745.0,0.170377]
[1724185496664,0.206,59750.0,59745.0,0.003]
[1724185497485,0.206,59750.0,59745.0,0.170377]
[1724185498306,0.206,59750.0,59745.0,0.003]
[1724185498506,0.206,59750.0,59746.0,0.167374]
[1724185498715,0.205,59750.0,59745.0,0.167377]
[1724185498927,0.204,59750.0,59742.0,0.334769]
[1724185499130,0.205,59750.0,59745.0,0.002]
[1724185499331,0.206,59750.0,59745.0,0.002]
[1724185499579,0.205,59750.0,59744.0,0.167379]
[1724185500360,0.206,59750.0,59745.0,0.001]
[1724185500688,0.206,59750.0,59745.0,0.168375]
[1724185500689,0.20479861,59750.0,59745.0,0.168375]
[1724185500905,0.20579861,59750.0,59745.0,0.168375]
[1724185501463,0.20579861,59750.0,59745.0,0.001]
[1724185501464,0.37316261,59750.0,59745.0,0.001]
[1724185501644,0.37116261,59750.0,59744.0,0.167379]
[1724185501847,0.37116261,59750.0,59745.0,0.001]
[1724185502047,0.37316261,59750.0,59745.0,0.001]
[1724185502675,0.37216261,59750.0,59745.0,0.001]
[1724185502948,0.20479861,59750.0,59745.0,0.168377]
[1724185503154,0.20579861,59750.0,59745.0,0.170377]
[1724185503968,0.20579861,59750.0,59747.0,0.16737]
[1724185504176,0.20579861,59750.0,59745.0,0.5060352]
[1724185504319,0.20579861,59750.0,59745.0,0.1712802]
[1724185504517,0.20579861,59750.0,59746.0,0.1164]
[1724185504754,0.20479861,59750.0,59746.0,0.1164]
[1724185505076,0.20579861,59750.0,59747.0,0.002]
[1724185505280,0.20479861,59750.0,59747.0,0.002]
[1724185505480,0.20479861,59750.0,59747.0,0.001]
[1724185505920,0.20579861,59750.0,59747.0,0.001]
[1724185506444,0.20479861,59750.0,59747.0,0.001]
[1724185506839,0.37216361,59750.0,59747.0,0.002]
[1724185507043,0.001,59748.0,59747.0,0.002]
[1724185507236,0.533669,59748.0,59747.0,0.002]
[1724185508059,0.533669,59748.0,59747.0,0.003]
[1724185508060,0.868408,59748.0,59747.0,0.003]
[1724185508193,0.868408,59748.0,59747.0,0.001]